[Event "*** SCC Grand Prix: Titled Tuesday Blitz"]
[Site "Chess.com"]
[Date "2020.10.13"]
[Round "7"]
[White "Parhamov"]
[Black "Sanan_Sjugirov"]
[Result "1-0"]
[WhiteElo "2971"]
[BlackElo "2894"]
[TimeControl "180+1"]
[EndTime "11:14:49 PDT"]
[Termination "Parhamov won on time"]

1. e4 {[%clk 0:03:00.9]} 1... c5 {[%clk 0:02:59.4]} 2. Nc3 {[%clk 0:03:01.5]}
2... Nc6 {[%clk 0:02:59.3]} 3. Bb5 {[%clk 0:03:01.9]} 3... Nd4 {[%clk
0:02:57.9]} 4. Nf3 {[%clk 0:03:02.2]} 4... a6 {[%clk 0:02:56.6]} 5. Bd3 {[%clk
0:03:02.8]} 5... g6 {[%clk 0:02:56.2]} 6. Nxd4 {[%clk 0:03:01.4]} 6... cxd4
{[%clk 0:02:57.1]} 7. Ne2 {[%clk 0:03:01.9]} 7... d5 {[%clk 0:02:56.2]} 8. e5
{[%clk 0:02:59.7]} 8... Bg7 {[%clk 0:02:54.6]} 9. f4 {[%clk 0:02:59.9]} 9... f6
{[%clk 0:02:52.7]} 10. exf6 {[%clk 0:02:45.8]} 10... Nxf6 {[%clk 0:02:43.6]} 11.
b3 {[%clk 0:02:45.5]} 11... O-O {[%clk 0:02:38.7]} 12. O-O {[%clk 0:02:44.8]}
12... Ne4 {[%clk 0:02:11.3]} 13. Ng3 {[%clk 0:02:35.3]} 13... Nc5 {[%clk
0:01:57.7]} 14. Ba3 {[%clk 0:02:35.1]} 14... Nxd3 {[%clk 0:01:56.8]} 15. cxd3
{[%clk 0:02:35.1]} 15... Rf7 {[%clk 0:01:25.8]} 16. Qe2 {[%clk 0:02:34.5]} 16...
a5 {[%clk 0:01:21.1]} 17. Rae1 {[%clk 0:02:33.4]} 17... e6 {[%clk 0:00:47]} 18.
Nh1 {[%clk 0:02:33.2]} 18... a4 {[%clk 0:00:45.8]} 19. b4 {[%clk 0:02:33.1]}
19... Qd6 {[%clk 0:00:42.6]} 20. g3 {[%clk 0:02:32.6]} 20... Bd7 {[%clk
0:00:38.4]} 21. Nf2 {[%clk 0:02:32.9]} 21... h5 {[%clk 0:00:33.1]} 22. Nh3
{[%clk 0:02:31.5]} 22... Re8 {[%clk 0:00:30.7]} 23. Ng5 {[%clk 0:02:31.1]} 23...
Rf5 {[%clk 0:00:25.2]} 24. Nf3 {[%clk 0:02:31.3]} 24... Bb5 {[%clk 0:00:20.5]}
25. Nh4 {[%clk 0:02:27.8]} 25... Rf6 {[%clk 0:00:10.4]} 26. Rc1 {[%clk
0:02:27.9]} 26... Qa6 {[%clk 0:00:09.9]} 27. Rf3 {[%clk 0:02:25.2]} 27... Qd6
{[%clk 0:00:03.6]} 28. Rc5 {[%clk 0:02:23]} 28... Qd7 {[%clk 0:00:01.8]} 29. Qe5
{[%clk 0:02:20.8]} 29... Kh7 {[%clk 0:00:01.1]} 30. Rc7 {[%clk 0:02:18.7]} 1-0

[Event "*** SCC Grand Prix: Titled Tuesday Blitz"]
[Site "Chess.com"]
[Date "2020.10.13"]
[Round "7"]
[White "wanyaland"]
[Black "zurzan"]
[Result "1-0"]
[WhiteElo "2299"]
[BlackElo "1991"]
[TimeControl "180+1"]
[EndTime "11:14:51 PDT"]
[Termination "wanyaland won by resignation"]

1. d4 {[%clk 0:02:57]} 1... f5 {[%clk 0:02:59.1]} 2. c4 {[%clk 0:02:56.6]} 2...
Nf6 {[%clk 0:02:59]} 3. g3 {[%clk 0:02:56.8]} 3... g6 {[%clk 0:02:59.2]} 4. Bg2
{[%clk 0:02:57.7]} 4... Bg7 {[%clk 0:03:00.1]} 5. Nh3 {[%clk 0:02:57]} 5... O-O
{[%clk 0:03:01]} 6. Nc3 {[%clk 0:02:56.4]} 6... d6 {[%clk 0:03:01.9]} 7. Nf4
{[%clk 0:02:56.5]} 7... c6 {[%clk 0:02:58.3]} 8. d5 {[%clk 0:02:56.2]} 8... Re8
{[%clk 0:02:47.8]} 9. O-O {[%clk 0:02:45.6]} 9... e5 {[%clk 0:02:47.6]} 10. dxe6
{[%clk 0:02:43.3]} 10... Bxe6 {[%clk 0:02:47.6]} 11. Nxe6 {[%clk 0:02:44.2]}
11... Rxe6 {[%clk 0:02:47.3]} 12. b3 {[%clk 0:02:43.6]} 12... Qe7 {[%clk
0:02:45.7]} 13. Ba3 {[%clk 0:02:41]} 13... Ne4 {[%clk 0:02:27.5]} 14. Nxe4
{[%clk 0:02:39.1]} 14... fxe4 {[%clk 0:02:24]} 15. Rc1 {[%clk 0:02:36.1]} 15...
c5 {[%clk 0:02:22.7]} 16. e3 {[%clk 0:02:35.3]} 16... Nc6 {[%clk 0:02:21.1]} 17.
Qd5 {[%clk 0:02:34.1]} 17... Kh8 {[%clk 0:02:12.6]} 18. Rcd1 {[%clk 0:02:32.2]}
18... Re8 {[%clk 0:01:59.3]} 19. Rd2 {[%clk 0:02:31.3]} 19... Bc3 {[%clk
0:01:56.3]} 20. Rfd1 {[%clk 0:02:30.7]} 20... Bxd2 {[%clk 0:01:55.8]} 21. Rxd2
{[%clk 0:02:31.6]} 21... h6 {[%clk 0:01:53.8]} 22. h4 {[%clk 0:02:27.8]} 22...
Kh7 {[%clk 0:01:53.2]} 23. h5 {[%clk 0:02:27.6]} 23... Qg5 {[%clk 0:01:38.9]}
24. Bxe4 {[%clk 0:02:09.3]} 24... Rxe4 {[%clk 0:01:22.9]} 25. Qf7+ {[%clk
0:02:08.2]} 25... Kh8 {[%clk 0:01:22.9]} 26. Bb2+ {[%clk 0:02:06.9]} 26... R4e5
{[%clk 0:01:13.7]} 27. Qxe8+ {[%clk 0:02:03.5]} 27... Kg7 {[%clk 0:01:10.6]} 28.
Rxd6 {[%clk 0:01:56.3]} 28... Ne7 {[%clk 0:00:55.9]} 29. Rd7 {[%clk 0:01:40.5]}
29... Qxh5 {[%clk 0:00:43.6]} 30. Bxe5+ {[%clk 0:01:38.9]} 30... Qxe5 {[%clk
0:00:41.5]} 31. Rxe7+ {[%clk 0:01:38]} 1-0

[Event "*** SCC Grand Prix: Titled Tuesday Blitz"]
[Site "Chess.com"]
[Date "2020.10.13"]
[Round "7"]
[White "TokChess"]
[Black "CheckThis4"]
[Result "1-0"]
[WhiteElo "2414"]
[BlackElo "2587"]
[TimeControl "180+1"]
[EndTime "11:14:53 PDT"]
[Termination "TokChess won by resignation"]

1. Nf3 {[%clk 0:03:00.4]} 1... d5 {[%clk 0:02:59.3]} 2. g3 {[%clk 0:03:00.5]}
2... Nc6 {[%clk 0:02:57.9]} 3. Bg2 {[%clk 0:03:01.4]} 3... e5 {[%clk 0:02:57.7]}
4. O-O {[%clk 0:03:01.2]} 4... e4 {[%clk 0:02:52.5]} 5. Ne1 {[%clk 0:02:59.7]}
5... h5 {[%clk 0:02:49.8]} 6. d3 {[%clk 0:03:00.1]} 6... exd3 {[%clk 0:02:47.2]}
7. cxd3 {[%clk 0:02:59.8]} 7... h4 {[%clk 0:02:47]} 8. Nc3 {[%clk 0:02:58.1]}
8... Nf6 {[%clk 0:02:46]} 9. Bg5 {[%clk 0:02:56.8]} 9... hxg3 {[%clk 0:02:45.9]}
10. hxg3 {[%clk 0:02:55.8]} 10... Be7 {[%clk 0:02:35]} 11. Bxf6 {[%clk
0:02:40.7]} 11... Bxf6 {[%clk 0:02:34.2]} 12. Nxd5 {[%clk 0:02:41.1]} 12... Bh3
{[%clk 0:02:31.1]} 13. e4 {[%clk 0:02:32.1]} 13... Bd4 {[%clk 0:02:21]} 14. Bxh3
{[%clk 0:02:22.1]} 14... Rxh3 {[%clk 0:02:19.9]} 15. Qg4 {[%clk 0:02:22.3]}
15... Rh7 {[%clk 0:02:11.6]} 16. Nf3 {[%clk 0:02:17]} 16... Qd6 {[%clk 0:02:03]}
17. Kg2 {[%clk 0:02:09.7]} 17... Ne5 {[%clk 0:01:33.9]} 18. Nxe5 {[%clk
0:02:05.6]} 18... Qxe5 {[%clk 0:01:33.6]} 19. Rh1 {[%clk 0:02:00.6]} 19... Rxh1
{[%clk 0:01:32.4]} 20. Rxh1 {[%clk 0:01:59.6]} 20... g6 {[%clk 0:01:31.3]} 21.
Rh7 {[%clk 0:01:25.2]} 21... c6 {[%clk 0:01:27.4]} 22. Qf3 {[%clk 0:01:17.8]}
22... O-O-O {[%clk 0:00:59.1]} 23. Qxf7 {[%clk 0:01:10.9]} 23... Rxd5 {[%clk
0:00:54]} 24. Qxb7+ {[%clk 0:01:02.3]} 24... Kd8 {[%clk 0:00:54.1]} 25. Qa8+
{[%clk 0:01:01]} 1-0

[Event "*** SCC Grand Prix: Titled Tuesday Blitz"]
[Site "Chess.com"]
[Date "2020.10.13"]
[Round "7"]
[White "juancruzarias"]
[Black "vanea_03"]
[Result "0-1"]
[WhiteElo "2527"]
[BlackElo "2697"]
[TimeControl "180+1"]
[EndTime "11:14:54 PDT"]
[Termination "vanea_03 won by resignation"]

1. d4 {[%clk 0:03:00.9]} 1... f5 {[%clk 0:02:59.1]} 2. Nf3 {[%clk 0:03:01]} 2...
Nf6 {[%clk 0:02:59.2]} 3. Nc3 {[%clk 0:03:01.5]} 3... e6 {[%clk 0:02:53.2]} 4.
Bf4 {[%clk 0:03:01.6]} 4... Bd6 {[%clk 0:02:40.6]} 5. e3 {[%clk 0:03:00.8]} 5...
O-O {[%clk 0:02:36.9]} 6. Bd3 {[%clk 0:03:00.5]} 6... b6 {[%clk 0:02:36.6]} 7.
h3 {[%clk 0:02:59.3]} 7... Bb7 {[%clk 0:02:36.5]} 8. Qe2 {[%clk 0:02:46.3]} 8...
Bxf4 {[%clk 0:02:22.3]} 9. exf4 {[%clk 0:02:45.7]} 9... Nc6 {[%clk 0:02:05.2]}
10. O-O-O {[%clk 0:02:44]} 10... Nb4 {[%clk 0:02:03.1]} 11. g4 {[%clk
0:02:39.7]} 11... Nxd3+ {[%clk 0:01:56.2]} 12. cxd3 {[%clk 0:02:35.6]} 12... Nd5
{[%clk 0:01:53.8]} 13. Nxd5 {[%clk 0:02:30.9]} 13... Bxd5 {[%clk 0:01:54.7]} 14.
g5 {[%clk 0:02:25.8]} 14... d6 {[%clk 0:01:46.6]} 15. Kb1 {[%clk 0:02:25.2]}
15... Qd7 {[%clk 0:01:42.4]} 16. h4 {[%clk 0:02:25.4]} 16... Qa4 {[%clk
0:01:34.4]} 17. b3 {[%clk 0:02:25.1]} 17... Qb4 {[%clk 0:01:32.1]} 18. Rhg1
{[%clk 0:02:00.4]} 18... a5 {[%clk 0:01:28.4]} 19. g6 {[%clk 0:01:59.2]} 19...
h6 {[%clk 0:01:19]} 20. Nd2 {[%clk 0:01:53.5]} 20... a4 {[%clk 0:01:16.6]} 21.
Nc4 {[%clk 0:01:50.5]} 21... axb3 {[%clk 0:01:00.6]} 22. axb3 {[%clk 0:01:50.5]}
22... b5 {[%clk 0:00:49.1]} 23. Ne3 {[%clk 0:01:23.6]} 23... Bxb3 {[%clk
0:00:47.5]} 24. Qb2 {[%clk 0:01:23.2]} 24... Ra2 {[%clk 0:00:45]} 25. Rd2 {[%clk
0:01:19]} 25... Rxb2+ {[%clk 0:00:44.2]} 26. Rxb2 {[%clk 0:01:19.9]} 26... Ra8
{[%clk 0:00:42.8]} 27. Rc1 {[%clk 0:01:19.5]} 27... Qa3 {[%clk 0:00:41.5]} 0-1

[Event "*** SCC Grand Prix: Titled Tuesday Blitz"]
[Site "Chess.com"]
[Date "2020.10.13"]
[Round "7"]
[White "MPGM"]
[Black "Jabberwockiez"]
[Result "1-0"]
[WhiteElo "2440"]
[BlackElo "2242"]
[TimeControl "180+1"]
[EndTime "11:15:03 PDT"]
[Termination "MPGM won by resignation"]

1. c4 {[%clk 0:03:00.9]} 1... c5 {[%clk 0:02:59.6]} 2. Nf3 {[%clk 0:02:59.4]}
2... Nc6 {[%clk 0:02:58.7]} 3. e3 {[%clk 0:02:59.6]} 3... g6 {[%clk 0:02:59.1]}
4. d4 {[%clk 0:02:59.6]} 4... cxd4 {[%clk 0:03:00]} 5. exd4 {[%clk 0:03:00.4]}
5... d5 {[%clk 0:03:00.6]} 6. Nc3 {[%clk 0:03:00.2]} 6... e6 {[%clk 0:02:57.3]}
7. cxd5 {[%clk 0:02:55.4]} 7... exd5 {[%clk 0:02:58.2]} 8. Bb5 {[%clk 0:02:55]}
8... Bg7 {[%clk 0:02:57.7]} 9. O-O {[%clk 0:02:54.8]} 9... Ne7 {[%clk
0:02:57.8]} 10. Bg5 {[%clk 0:02:48.7]} 10... O-O {[%clk 0:02:56]} 11. Re1 {[%clk
0:02:47.6]} 11... f6 {[%clk 0:02:49.2]} 12. Bf4 {[%clk 0:02:43.7]} 12... Bg4
{[%clk 0:02:47.9]} 13. Be2 {[%clk 0:02:38.5]} 13... Nf5 {[%clk 0:02:43.2]} 14.
h3 {[%clk 0:02:36.2]} 14... Bxf3 {[%clk 0:02:41.1]} 15. Bxf3 {[%clk 0:02:37.1]}
15... Ncxd4 {[%clk 0:02:36.3]} 16. Bxd5+ {[%clk 0:02:36.5]} 16... Kh8 {[%clk
0:02:36]} 17. g4 {[%clk 0:02:31.1]} 17... Nh4 {[%clk 0:02:27.7]} 18. Bg3 {[%clk
0:02:26.9]} 18... f5 {[%clk 0:02:24.8]} 19. Re5 {[%clk 0:02:09.4]} 19... f4
{[%clk 0:02:12.9]} 20. Bxh4 {[%clk 0:01:59.1]} 20... Qxh4 {[%clk 0:02:11.2]} 21.
Re4 {[%clk 0:01:59.2]} 21... Nc6 {[%clk 0:01:37.6]} 22. Bxc6 {[%clk 0:01:55.8]}
22... bxc6 {[%clk 0:01:38.5]} 23. Qf3 {[%clk 0:01:56]} 23... g5 {[%clk
0:01:30.2]} 24. Rd1 {[%clk 0:01:47.6]} 24... Rab8 {[%clk 0:01:26.1]} 25. Rd7
{[%clk 0:01:34.6]} 25... Rxb2 {[%clk 0:01:20.2]} 26. Ree7 {[%clk 0:01:34]} 26...
Rg8 {[%clk 0:01:03.5]} 27. Ne4 {[%clk 0:01:33.6]} 27... Rb1+ {[%clk 0:00:59.3]}
28. Kg2 {[%clk 0:01:33.5]} 28... Qh6 {[%clk 0:00:53.7]} 29. Nd6 {[%clk 0:01:33]}
29... Rf8 {[%clk 0:00:37]} 30. Nf7+ {[%clk 0:01:33.9]} 30... Rxf7 {[%clk
0:00:36.6]} 31. Rxf7 {[%clk 0:01:34.8]} 31... Rb8 {[%clk 0:00:30.6]} 32. Rxg7
{[%clk 0:01:32.9]} 32... Qxg7 {[%clk 0:00:31.1]} 33. Rxg7 {[%clk 0:01:33.8]} 1-0

[Event "*** SCC Grand Prix: Titled Tuesday Blitz"]
[Site "Chess.com"]
[Date "2020.10.13"]
[Round "7"]
[White "temus_galaktionov"]
[Black "BigAl"]
[Result "1-0"]
[WhiteElo "2643"]
[BlackElo "2509"]
[TimeControl "180+1"]
[EndTime "11:15:12 PDT"]
[Termination "temus_galaktionov won by resignation"]

1. d4 {[%clk 0:03:00.9]} 1... Nf6 {[%clk 0:02:57.5]} 2. Nf3 {[%clk 0:03:01.8]}
2... g6 {[%clk 0:02:55.2]} 3. c4 {[%clk 0:03:01.9]} 3... Bg7 {[%clk 0:02:54.9]}
4. Nc3 {[%clk 0:03:02.5]} 4... O-O {[%clk 0:02:55.8]} 5. e4 {[%clk 0:03:01.8]}
5... d6 {[%clk 0:02:56.6]} 6. Be2 {[%clk 0:03:02.4]} 6... Bg4 {[%clk 0:02:55.2]}
7. Ng1 {[%clk 0:03:01.8]} 7... Bc8 {[%clk 0:02:54.3]} 8. Nf3 {[%clk 0:03:01]}
8... Bg4 {[%clk 0:02:52.2]} 9. Ng1 {[%clk 0:03:00]} 9... Bxe2 {[%clk 0:02:50.7]}
10. Ngxe2 {[%clk 0:03:00.9]} 10... Nfd7 {[%clk 0:02:50.6]} 11. O-O {[%clk
0:03:00.9]} 11... c5 {[%clk 0:02:50.9]} 12. Be3 {[%clk 0:03:00]} 12... Nc6
{[%clk 0:02:49.4]} 13. d5 {[%clk 0:03:00.1]} 13... Na5 {[%clk 0:02:48.2]} 14. b3
{[%clk 0:02:58.3]} 14... a6 {[%clk 0:02:48.4]} 15. a4 {[%clk 0:02:57.9]} 15...
Re8 {[%clk 0:02:43.9]} 16. h3 {[%clk 0:02:54.6]} 16... Rb8 {[%clk 0:02:33.4]}
17. Qc2 {[%clk 0:02:53.4]} 17... e5 {[%clk 0:02:28]} 18. dxe6 {[%clk 0:02:52.7]}
18... fxe6 {[%clk 0:02:17]} 19. Rad1 {[%clk 0:02:51.7]} 19... Ne5 {[%clk
0:02:17.1]} 20. Rd2 {[%clk 0:02:49.2]} 20... Qc7 {[%clk 0:02:09]} 21. Rfd1
{[%clk 0:02:48.6]} 21... Rbd8 {[%clk 0:02:08.6]} 22. f3 {[%clk 0:02:37.2]} 22...
Nac6 {[%clk 0:02:03.5]} 23. Qc1 {[%clk 0:02:36.3]} 23... Nf7 {[%clk 0:02:02]}
24. Rd3 {[%clk 0:02:21.9]} 24... Bxc3 {[%clk 0:02:00.9]} 25. Nxc3 {[%clk
0:02:18.7]} 25... e5 {[%clk 0:02:00.8]} 26. Nd5 {[%clk 0:02:17.6]} 26... Qc8
{[%clk 0:01:58.7]} 27. Nf6+ {[%clk 0:02:17.5]} 27... Kg7 {[%clk 0:01:59.1]} 28.
Nxe8+ {[%clk 0:02:18.4]} 28... Rxe8 {[%clk 0:01:59.7]} 29. Rxd6 {[%clk
0:02:11.4]} 29... Nxd6 {[%clk 0:01:32.8]} 30. Rxd6 {[%clk 0:02:12.3]} 30... Nd4
{[%clk 0:01:33.2]} 31. Bxd4 {[%clk 0:02:07.5]} 31... cxd4 {[%clk 0:01:33.5]} 32.
Qg5 {[%clk 0:02:00.3]} 32... Qc7 {[%clk 0:01:28.9]} 33. Qf6+ {[%clk 0:01:59.2]}
33... Kg8 {[%clk 0:01:29.2]} 34. Rd5 {[%clk 0:01:56.8]} 34... Qe7 {[%clk
0:01:20]} 35. Qxe7 {[%clk 0:01:51.2]} 35... Rxe7 {[%clk 0:01:18.9]} 36. a5
{[%clk 0:01:52.1]} 36... g5 {[%clk 0:01:17.6]} 37. h4 {[%clk 0:01:50.9]} 37...
h6 {[%clk 0:01:17]} 38. hxg5 {[%clk 0:01:50.7]} 38... hxg5 {[%clk 0:01:17.9]}
39. Kf2 {[%clk 0:01:49.6]} 39... Kf7 {[%clk 0:01:18.2]} 40. Rd6 {[%clk
0:01:49.1]} 40... Rc7 {[%clk 0:01:16.4]} 41. Ke2 {[%clk 0:01:46]} 41... Rc5
{[%clk 0:01:06.6]} 42. Rd5 {[%clk 0:01:45.5]} 42... Rxd5 {[%clk 0:01:04.2]} 43.
exd5 {[%clk 0:01:44.5]} 43... Ke7 {[%clk 0:01:04]} 44. c5 {[%clk 0:01:44.1]}
44... Kd7 {[%clk 0:01:04]} 45. Kd3 {[%clk 0:01:42.6]} 45... Kc7 {[%clk
0:01:03.3]} 46. Ke4 {[%clk 0:01:42.4]} 46... Kd7 {[%clk 0:01:03.3]} 47. g3
{[%clk 0:01:42.1]} 47... Kc7 {[%clk 0:01:00]} 48. f4 {[%clk 0:01:39.6]} 48...
exf4 {[%clk 0:00:58.6]} 49. gxf4 {[%clk 0:01:40.5]} 49... g4 {[%clk 0:00:57.9]}
50. Kxd4 {[%clk 0:01:40.5]} 1-0

[Event "*** SCC Grand Prix: Titled Tuesday Blitz"]
[Site "Chess.com"]
[Date "2020.10.13"]
[Round "7"]
[White "kreonx"]
[Black "louis198"]
[Result "0-1"]
[WhiteElo "2369"]
[BlackElo "2580"]
[TimeControl "180+1"]
[EndTime "11:15:13 PDT"]
[Termination "louis198 won by resignation"]

1. e4 {[%clk 0:03:00.9]} 1... e6 {[%clk 0:02:59.7]} 2. c4 {[%clk 0:02:59.3]}
2... d5 {[%clk 0:02:59.7]} 3. cxd5 {[%clk 0:02:59.6]} 3... exd5 {[%clk
0:03:00.3]} 4. exd5 {[%clk 0:03:00.5]} 4... Qxd5 {[%clk 0:02:59.1]} 5. Nc3
{[%clk 0:03:00.7]} 5... Qe6+ {[%clk 0:02:59.5]} 6. Be2 {[%clk 0:02:59.8]} 6...
Nf6 {[%clk 0:02:58.7]} 7. Nf3 {[%clk 0:02:59.7]} 7... Be7 {[%clk 0:02:59.1]} 8.
O-O {[%clk 0:02:59.9]} 8... O-O {[%clk 0:02:59.5]} 9. d4 {[%clk 0:02:58.1]} 9...
c6 {[%clk 0:02:59.7]} 10. Re1 {[%clk 0:02:57.9]} 10... Qd6 {[%clk 0:02:57.9]}
11. Ne5 {[%clk 0:02:49.8]} 11... Be6 {[%clk 0:02:51.6]} 12. Bf4 {[%clk
0:02:48.1]} 12... Qd8 {[%clk 0:02:52.2]} 13. a3 {[%clk 0:02:35]} 13... Nd5
{[%clk 0:02:52.3]} 14. Nxd5 {[%clk 0:02:13.1]} 14... Bxd5 {[%clk 0:02:52.3]} 15.
Bd3 {[%clk 0:02:10.9]} 15... Bf6 {[%clk 0:02:50]} 16. Qe2 {[%clk 0:01:15.8]}
16... Nd7 {[%clk 0:02:48.1]} 17. Rad1 {[%clk 0:01:13.6]} 17... Re8 {[%clk
0:02:48.3]} 18. Bc4 {[%clk 0:01:07.8]} 18... Nb6 {[%clk 0:02:42.1]} 19. Bd3
{[%clk 0:01:03.2]} 19... g6 {[%clk 0:02:35.6]} 20. Qf1 {[%clk 0:00:55.4]} 20...
Bg7 {[%clk 0:02:35.2]} 21. Ng4 {[%clk 0:00:50.3]} 21... Rxe1 {[%clk 0:02:32]}
22. Qxe1 {[%clk 0:00:45.9]} 22... Bb3 {[%clk 0:02:31.1]} 23. Rd2 {[%clk
0:00:41.6]} 23... Qxd4 {[%clk 0:02:28]} 24. Nh6+ {[%clk 0:00:23.6]} 24... Kh8
{[%clk 0:02:24.2]} 25. g3 {[%clk 0:00:07.9]} 25... Qf6 {[%clk 0:02:23.6]} 26.
Bc2 {[%clk 0:00:05.7]} 26... Bd5 {[%clk 0:02:19]} 27. Ng4 {[%clk 0:00:04.5]}
27... Qe6 {[%clk 0:02:18.8]} 28. Be5 {[%clk 0:00:04.1]} 28... Qxg4 {[%clk
0:02:16.8]} 29. Bxg7+ {[%clk 0:00:04.1]} 29... Kxg7 {[%clk 0:02:17.1]} 30. f3
{[%clk 0:00:04.2]} 30... Qxf3 {[%clk 0:02:14.1]} 31. Qe5+ {[%clk 0:00:04.3]}
31... Kg8 {[%clk 0:02:10.9]} 32. Re2 {[%clk 0:00:03.5]} 32... Qh1+ {[%clk
0:02:10.2]} 33. Kf2 {[%clk 0:00:04]} 33... Nc4 {[%clk 0:02:08.7]} 34. Bb3 {[%clk
0:00:03]} 0-1

[Event "*** SCC Grand Prix: Titled Tuesday Blitz"]
[Site "Chess.com"]
[Date "2020.10.13"]
[Round "7"]
[White "SophieNikoladze"]
[Black "guillembaches"]
[Result "0-1"]
[WhiteElo "2247"]
[BlackElo "2401"]
[TimeControl "180+1"]
[EndTime "11:15:15 PDT"]
[Termination "guillembaches won by resignation"]

1. d4 {[%clk 0:03:00.9]} 1... d5 {[%clk 0:02:59.6]} 2. Nf3 {[%clk 0:03:00.8]}
2... c5 {[%clk 0:02:58]} 3. e3 {[%clk 0:03:00.7]} 3... Nf6 {[%clk 0:02:53.6]} 4.
b3 {[%clk 0:03:00.6]} 4... e6 {[%clk 0:02:50]} 5. Bb2 {[%clk 0:03:00.6]} 5...
Be7 {[%clk 0:02:50]} 6. Nbd2 {[%clk 0:03:00.6]} 6... O-O {[%clk 0:02:49.9]} 7.
Bd3 {[%clk 0:03:01.1]} 7... b6 {[%clk 0:02:49.7]} 8. Ne5 {[%clk 0:03:01]} 8...
Bb7 {[%clk 0:02:49.4]} 9. O-O {[%clk 0:03:00.9]} 9... Nc6 {[%clk 0:02:49]} 10.
a3 {[%clk 0:02:59.8]} 10... Nd7 {[%clk 0:02:43.6]} 11. f4 {[%clk 0:02:59.5]}
11... f6 {[%clk 0:02:39.6]} 12. Qh5 {[%clk 0:02:48.9]} 12... f5 {[%clk
0:02:33.1]} 13. g4 {[%clk 0:02:48.3]} 13... Ndxe5 {[%clk 0:02:14.7]} 14. dxe5
{[%clk 0:02:44.8]} 14... g6 {[%clk 0:02:09.5]} 15. Qh6 {[%clk 0:02:44.6]} 15...
Qd7 {[%clk 0:01:54.2]} 16. g5 {[%clk 0:02:41.6]} 16... a6 {[%clk 0:01:37.6]} 17.
Rf2 {[%clk 0:02:28.8]} 17... b5 {[%clk 0:01:37]} 18. c4 {[%clk 0:02:28.6]} 18...
dxc4 {[%clk 0:01:35.3]} 19. Bc2 {[%clk 0:02:19.3]} 19... cxb3 {[%clk 0:01:32.1]}
20. Nxb3 {[%clk 0:02:15.8]} 20... c4 {[%clk 0:01:25.9]} 21. Nd4 {[%clk
0:02:15.7]} 21... Nxd4 {[%clk 0:01:19.2]} 22. Bxd4 {[%clk 0:02:15.1]} 22... Qd5
{[%clk 0:01:17.9]} 23. Kf1 {[%clk 0:02:15.1]} 23... c3 {[%clk 0:01:11]} 24. Rb1
{[%clk 0:02:05.9]} 24... Rac8 {[%clk 0:01:05]} 25. Ke2 {[%clk 0:01:57.8]} 25...
Qc4+ {[%clk 0:01:01.4]} 26. Kd1 {[%clk 0:01:55.8]} 26... Be4 {[%clk 0:00:55.7]}
27. Bxe4 {[%clk 0:01:41.3]} 27... fxe4 {[%clk 0:00:54.7]} 28. Rc1 {[%clk
0:01:40.8]} 28... Bxa3 {[%clk 0:00:47.6]} 29. Rxc3 {[%clk 0:01:39.5]} 29... Qa4+
{[%clk 0:00:47.5]} 30. Rfc2 {[%clk 0:01:35.6]} 30... Rxc3 {[%clk 0:00:46.3]} 31.
Bxc3 {[%clk 0:01:35.2]} 31... Rd8+ {[%clk 0:00:44.6]} 32. Bd2 {[%clk 0:01:33]}
32... Rc8 {[%clk 0:00:42.7]} 33. Qh3 {[%clk 0:01:29]} 33... Qxc2+ {[%clk
0:00:40.4]} 34. Ke1 {[%clk 0:01:29.1]} 34... Rc6 {[%clk 0:00:33.9]} 35. Qg2
{[%clk 0:01:28.2]} 35... Bc1 {[%clk 0:00:32.9]} 0-1

[Event "*** SCC Grand Prix: Titled Tuesday Blitz"]
[Site "Chess.com"]
[Date "2020.10.13"]
[Round "7"]
[White "HanSchut"]
[Black "Klavdia_Nik"]
[Result "1-0"]
[WhiteElo "2210"]
[BlackElo "2108"]
[TimeControl "180+1"]
[EndTime "11:15:16 PDT"]
[Termination "HanSchut won on time"]

1. e4 {[%clk 0:03:00.9]} 1... g6 {[%clk 0:02:47.1]} 2. d4 {[%clk 0:03:00.4]}
2... d6 {[%clk 0:02:39.2]} 3. Nc3 {[%clk 0:02:59.5]} 3... Bg7 {[%clk 0:02:39]}
4. f4 {[%clk 0:02:59.4]} 4... c6 {[%clk 0:02:29.4]} 5. Nf3 {[%clk 0:02:58.5]}
5... Nf6 {[%clk 0:02:17.8]} 6. Bd3 {[%clk 0:02:57]} 6... O-O {[%clk 0:02:14.7]}
7. O-O {[%clk 0:02:54.3]} 7... b5 {[%clk 0:01:53.9]} 8. e5 {[%clk 0:02:53.6]}
8... Ne8 {[%clk 0:01:52.1]} 9. Qe2 {[%clk 0:02:48.7]} 9... d5 {[%clk 0:01:38]}
10. a4 {[%clk 0:02:41.3]} 10... b4 {[%clk 0:01:27.4]} 11. Nd1 {[%clk 0:02:40.4]}
11... a5 {[%clk 0:01:19.5]} 12. c4 {[%clk 0:02:34.3]} 12... bxc3 {[%clk
0:01:10.6]} 13. bxc3 {[%clk 0:02:33.8]} 13... Bg4 {[%clk 0:00:58.6]} 14. Nf2
{[%clk 0:02:28.1]} 14... Bxf3 {[%clk 0:00:53.5]} 15. Qxf3 {[%clk 0:02:29]} 15...
e6 {[%clk 0:00:53.3]} 16. g4 {[%clk 0:02:26.7]} 16... f5 {[%clk 0:00:44.4]} 17.
Kh1 {[%clk 0:01:55.7]} 17... Nd7 {[%clk 0:00:35.7]} 18. Nh3 {[%clk 0:01:15.4]}
1-0